bitfinex/quotes_ETHUSD_20250916
["timestamp","ask_amount","ask_price","bid_price","bid_amount"]
[1758043878607,0.52522243,4507.0,4506.9,4.7144]
[1758043878830,2.74399323,4507.0,4506.9,5.0239]
[1758043879134,0.20741126,4507.0,4506.9,5.8159]
[1758043879319,0.20737531,4507.4,4507.0,0.792]
[1758043879519,2.2185739,4507.4,4507.1,1.75458721]
[1758043879831,2.33092468,4507.5,4507.4,0.792]
[1758043880134,2.2185739,4507.4,4507.3,0.792]
[1758043880339,0.41477682,4507.4,4507.3,1.1015]
[1758043880504,2.2185739,4507.4,4507.3,1.1015]
[1758043880702,2.63335072,4507.4,4507.3,1.1015]
[1758043880912,2.42596231,4507.4,4507.3,1.1015]
[1758043881099,0.20738841,4507.4,4507.3,2.06408623]
[1758043881295,2.2185739,4507.4,4507.3,2.06408623]
[1758043881500,2.2185739,4507.4,4507.3,1.12368623]
[1758043881701,2.42586095,4507.4,4507.3,4.565]
[1758043882108,0.20728705,4507.4,4507.3,4.8745]
[1758043882315,0.20728705,4507.4,4507.3,5.8149]
[1758043882535,0.1124,4507.5,4507.3,5.8149]
[1758043882834,0.1124,4507.5,4507.4,1.75458573]
[1758043883201,0.1124,4507.5,4507.4,2.06408573]
[1758043883603,0.002,4507.5,4507.4,2.06408573]
[1758043883899,0.002,4507.5,4507.4,2.6588343]
[1758043884331,0.002,4507.5,4507.4,2.7692343]
[1758043886251,0.002,4507.5,4507.4,2.74704857]
[1758043887828,0.002,4507.5,4507.4,17.24704857]
[1758043888535,0.002,4507.5,4507.4,19.46562247]
[1758043889636,0.002,4507.5,4507.4,17.24704857]
[1758043890006,0.002,4507.5,4507.4,19.46562247]
[1758043891018,0.002,4507.5,4507.4,17.24704857]
[1758043891444,0.002,4507.5,4507.4,19.46562247]
[1758043891835,0.002,4507.5,4507.4,27.47836526]
[1758043892912,0.002,4507.5,4507.4,32.49110805]
[1758043893922,0.002,4507.7,4507.5,6.01052468]
[1758043894120,0.002,4507.7,4507.6,12.02161902]
[1758043894309,0.002,4507.7,4507.6,13.19183427]
[1758043894511,0.002,4507.7,4507.6,27.69183427]
[1758043896113,0.002,4507.7,4507.6,23.92083427]
[1758043896412,0.002,4507.7,4507.6,27.69183427]
[1758043897218,0.002,4507.7,4507.6,27.69083427]
[1758043898872,0.002,4507.7,4507.6,23.02533427]
[1758043899162,0.002,4507.7,4507.6,21.5669]
[1758043899323,0.002,4507.7,4507.6,19.3589]
[1758043899648,0.002,4507.7,4507.6,24.57737546]
[1758043899855,0.002,4507.7,4507.6,25.47287546]
[1758043900230,0.002,4507.7,4507.6,25.58327546]
[1758043900425,0.002,4507.7,4507.6,27.80123427]
[1758043901618,0.01,4507.9,4507.7,6.01042624]
[1758043901844,0.01,4507.9,4507.8,11.5065608]
[1758043902156,0.01,4507.9,4507.8,12.67677703]
[1758043902355,0.01,4507.9,4507.8,28.89913324]
[1758043903172,1e-08,4507.9,4507.8,29.00953324]
[1758043903371,1e-08,4507.9,4507.8,25.24053324]
[1758043903525,1e-08,4507.9,4507.8,29.00953324]
[1758043905365,1e-08,4507.9,4507.8,25.24053324]
[1758043905558,1e-08,4507.9,4507.8,29.00953324]
[1758043906490,0.002,4508.0,4507.9,13.01032781]
[1758043906657,0.002,4508.2,4508.1,3.0102294]
[1758043906852,0.002,4509.6,4508.3,3.0]
[1758043907087,0.002,4509.6,4508.6,20.5099834]
[1758043907264,0.002,4509.6,4508.6,24.5758834]
[1758043907481,0.002,4509.6,4508.6,25.4713834]
[1758043907682,0.002,4509.6,4508.8,3.00988502]
[1758043907683,1e-08,4508.9,4508.8,3.00988502]
[1758043907893,1e-08,4508.9,4508.8,32.61709146]
[1758043908099,1e-08,4508.9,4508.8,33.78731261]
[1758043908313,1e-08,4508.9,4508.8,48.28731261]
[1758043909209,1e-08,4508.9,4508.8,44.51931261]
[1758043909382,1e-08,4508.9,4508.8,50.50527142]
[1758043910110,0.002,4509.6,4509.0,3.00978664]
[1758043910308,0.002,4509.6,4509.0,9.7999645]
[1758043910475,0.002,4509.6,4509.1,2.21773746]
[1758043910680,0.002,4509.6,4509.3,18.292]
[1758043910881,0.002,4509.6,4509.3,22.52889531]
[1758043911118,0.002,4509.6,4509.3,23.42439531]
[1758043913020,0.002,4509.6,4509.3,30.42439531]
[1758043913422,0.002,4509.6,4509.5,3.00954074]
[1758043913603,0.002,4509.6,4509.5,25.58474373]
[1758043913917,0.002,4509.6,4509.5,24.59133531]
[1758043914214,0.002,4509.6,4509.5,39.19937443]
[1758043915322,0.002,4509.6,4509.5,35.43237443]
[1758043915619,0.002,4509.6,4509.5,39.09133531]
[1758043915824,0.002,4509.6,4509.5,35.32433531]
[1758043916029,0.002,4509.6,4509.5,39.09133531]
[1758043916932,0.002,4509.6,4509.5,39.20173531]
[1758043917892,0.002,4509.6,4509.5,25.24083594]
[1758043918094,0.6632,4509.6,4509.5,17.38013594]
[1758043918309,0.6632,4509.6,4509.5,20.59394074]
[1758043918743,0.6632,4509.6,4509.5,21.38594074]
[1758043918896,0.6632,4509.6,4509.5,24.38594074]
[1758043919233,0.6632,4509.6,4509.5,23.59394074]
[1758043919532,0.002,4509.6,4509.5,24.38594074]
[1758043919826,0.002,4509.6,4509.5,25.53288451]
[1758043920332,0.002,4509.6,4509.5,25.84838451]
[1758043920536,0.002,4509.6,4509.5,26.76458451]
[1758043922753,0.002,4509.6,4509.5,33.76458451]
[1758043925869,0.002,4509.6,4509.5,33.85338687]
[1758043926869,0.002,4509.6,4509.5,30.08738687]
[1758043927067,0.6632,4509.6,4509.5,32.62068687]
[1758043927253,0.002,4509.6,4509.5,32.62068687]
[1758043927472,0.002,4509.6,4509.5,32.93618687]
[1758043927885,0.002,4509.6,4509.5,28.06368687]
[1758043927886,0.2031,4509.6,4509.5,28.06368687]
[1758043928085,0.6632,4509.6,4509.5,27.59294074]
[1758043928399,1.11,4509.6,4509.5,21.6104]
[1758043928580,1.11,4509.6,4509.5,25.3754]
[1758043928809,1.11,4509.6,4509.5,7.1104]
[1758043929077,3.32749157,4509.6,4509.5,10.765]
[1758043929257,3.43989157,4509.6,4509.5,13.765]
[1758043929453,3.43989157,4509.6,4509.5,14.557]
[1758043929653,3.64673044,4509.6,4509.5,8.704]
[1758043929853,3.64673044,4509.6,4509.5,12.469]
[1758043930083,1.6360969,4509.6,4509.5,15.469]
[1758043930262,1.31683887,4509.6,4509.5,15.469]
[1758043930465,1.11,4509.6,4509.5,16.261]
[1758043931270,1.11,4509.6,4509.5,16.26]
[1758043931590,1.11,4509.6,4509.5,12.496]
[1758043931903,1.11,4509.6,4509.5,16.261]
[1758043932075,3.32749157,4509.6,4509.5,16.261]
[1758043932280,1.31683887,4509.6,4509.5,16.261]
[1758043932487,3.53433044,4509.6,4509.5,16.261]
[1758043932692,1.31683887,4509.6,4509.5,16.261]
[1758043932999,1.31683887,4509.6,4509.5,9.496]
[1758043933000,3.66741433,4509.6,4509.5,9.496]
[1758043933307,3.87448016,4509.6,4509.5,13.261]
[1758043934170,0.002,4510.1,4509.6,0.792]
[1758043934503,0.002,4510.1,4509.7,3.765]
[1758043935221,0.002,4510.1,4509.8,0.81417393]
[1758043935398,0.002,4510.1,4510.0,0.792]
[1758043935399,2.21924573,4510.1,4510.0,0.792]
[1758043935579,0.002,4510.1,4510.0,0.792]
[1758043935774,2.21924573,4510.1,4510.0,0.792]
[1758043936307,0.4402,4510.1,4510.0,0.792]
[1758043936910,0.4402,4510.1,4510.0,0.81417294]
[1758043939932,0.002,4510.1,4510.0,0.81417294]
[1758043940140,0.002,4510.1,4510.0,1.12967294]
[1758043940295,0.002,4510.1,4510.0,4.00444783]
[1758043940501,0.002,4510.1,4510.0,4.47632077]
[1758043940701,0.002,4510.1,4510.0,7.92064783]
[1758043940901,0.002,4510.1,4510.0,6.68894783]
[1758043941102,0.002,4510.1,4510.0,4.47165293]
[1758043941297,0.002,4510.1,4510.0,6.68894783]
[1758043941535,0.002,4510.1,4510.0,7.00444783]
[1758043942133,0.002,4510.1,4510.0,7.45414783]
[1758043942442,0.002,4510.1,4510.0,5.23685293]
[1758043942837,0.002,4510.1,4509.7,3.792]
[1758043943028,0.002,4510.1,4510.0,0.9024]
[1758043943337,0.002,4510.1,4510.0,4.6664]
[1758043943537,0.002,4510.1,4510.0,4.556]
[1758043943739,2.65744573,4510.1,4510.0,4.556]
[1758043943944,0.92805555,4510.1,4510.0,0.792]
[1758043944149,0.92805555,4510.1,4510.0,3.764]
[1758043944305,0.4402,4510.1,4510.0,4.556]
[1758043945409,0.002,4510.1,4510.0,4.556]
[1758043946034,0.4402,4510.1,4510.0,4.556]
[1758043946866,0.002,4510.1,4510.0,11.556]
[1758043947531,0.002,4510.1,4510.0,7.792]
[1758043947739,0.002,4510.1,4510.0,11.556]
[1758043949424,0.4402,4510.1,4510.0,11.556]
[1758043949624,0.4402,4510.1,4510.0,4.556]
[1758043949850,0.4402,4510.1,4510.0,0.792]
[1758043950049,0.002,4510.1,4510.0,4.555]
[1758043950250,0.002,4510.1,4510.0,0.792]
[1758043950545,0.002,4510.1,4510.0,4.555]
[1758043951852,0.002,4510.1,4510.0,4.556]
[1758043952346,0.002,4510.1,4510.0,4.8714]
[1758043952553,0.002,4510.1,4510.0,5.3054]
[1758043952770,0.002,4510.1,4510.0,4.556]
[1758043953341,0.002,4510.1,4510.0,0.793]
[1758043953537,0.002,4510.1,4510.0,4.556]
[1758043953736,2.65744573,4510.1,4510.0,4.556]
[1758043953972,2.9235903,4510.1,4510.0,4.556]
[1758043954179,2.9235903,4510.1,4510.0,0.001]
[1758043954336,3.3381242,4510.1,4510.0,3.764]
[1758043955767,3.33828772,4510.1,4510.0,0.001]
[1758043955949,3.33828772,4510.1,4510.0,3.764]
[1758043956473,6.33828772,4510.1,4510.0,0.001]
[1758043956691,2.21749157,4509.6,4509.5,3.764]
[1758043956855,2.21749157,4509.6,4509.5,0.001]
[1758043956856,6.5138802,4509.6,4509.5,0.001]
[1758043957185,6.99141277,4509.6,4509.5,0.001]
[1758043959872,6.99128348,4509.6,4509.5,0.001]
[1758043960284,7.42408578,4509.6,4509.5,0.001]
[1758043964094,6.98588578,4509.6,4509.5,0.001]
[1758043964472,7.42408578,4509.6,4509.5,0.001]
[1758043966480,7.42408578,4509.6,4509.5,0.3164]
[1758043966481,4.33559191,4509.6,4509.5,0.3164]
[1758043966811,5.6320597,4509.6,4509.5,0.001]
[1758043967106,5.63168123,4509.6,4509.5,0.001]
[1758043968038,5.42432451,4509.6,4509.5,0.001]
[1758043968333,5.86160928,4509.6,4509.5,1.2127]
[1758043968535,2.21749157,4509.6,4509.5,2.0047]
[1758043969334,2.66098289,4509.6,4509.5,4.0814]
[1758043969898,2.66098289,4509.6,4509.5,3.766]
[1758043970091,2.86781827,4509.6,4509.5,3.766]
[1758043970290,3.51535,4509.6,4509.5,0.001]
[1758043970533,3.95355,4509.6,4509.5,0.001]
[1758043970687,6.95355,4509.6,4509.5,0.001]
[1758043970895,7.43015075,4509.6,4509.5,0.001]
[1758043971611,6.99195075,4509.6,4509.5,0.001]
[1758043972022,6.51535,4509.6,4509.5,0.3164]
[1758043972230,6.1016406,4509.6,4509.5,0.3164]
[1758043972405,6.1016406,4509.6,4509.5,1.2127]
[1758043972808,6.1016406,4509.6,4509.5,0.3164]
[1758043973015,6.30858972,4509.6,4509.5,0.3164]
[1758043973319,6.30858972,4509.6,4509.5,1.2127]
[1758043973320,5.86795226,4509.6,4509.5,1.2127]
[1758043973525,5.42446094,4509.6,4509.5,1.2127]
[1758043973964,5.42445965,4509.6,4509.5,1.2127]
[1758043974105,2.42445965,4509.6,4509.5,2.0047]
[1758043974538,2.21749157,4509.6,4509.5,2.0047]
[1758043974705,0.1104,4509.7,4509.6,0.792]
[1758043974904,0.002,4509.9,4509.6,1.95486255]
[1758043975110,0.002,4509.9,4509.8,1.0804]
[1758043975341,2.21934406,4509.9,4509.8,1.0804]
[1758043975567,2.21934406,4509.9,4509.8,2.0183]
[1758043975938,0.002,4509.9,4509.8,2.0183]
[1758043976134,0.002,4509.9,4509.8,2.04047393]
[1758043976838,0.002,4509.9,4509.8,2.80236132]
[1758043977096,0.002,4509.9,4509.8,2.91276132]
[1758043978840,0.002,4509.9,4509.8,6.67576132]
[1758043979176,0.002,4509.9,4509.8,6.65358739]
[1758043980073,0.002,4509.9,4509.8,21.15358739]
[1758043981482,0.002,4509.9,4509.8,20.3917]
[1758043982061,0.002,4509.9,4509.8,22.60909323]
[1758043982268,0.002,4509.9,4509.8,20.3917]
[1758043984305,0.002,4509.9,4509.8,22.60809323]
[1758043985003,0.002,4509.9,4509.8,25.60809323]
[1758043985208,0.002,4509.9,4509.8,27.82605204]
[1758043987719,0.002,4509.9,4509.8,24.06405204]
[1758043988040,0.002,4509.9,4509.8,27.82605204]
[1758043993829,0.002,4509.9,4509.8,27.82505204]
[1758043996141,0.002,4510.1,4510.0,3.0092949]
[1758043996344,0.002,4510.4,4510.3,3.792]
[1758043996646,0.002,4510.4,4510.3,31.16458478]
[1758043996945,0.002,4510.4,4510.3,46.60248478]
[1758044000786,0.002,4510.6,4510.5,6.0090491]
[1758044000982,0.002,4510.6,4510.5,10.7765892]
[1758044001184,0.002,4510.6,4510.5,12.0028892]
[1758044001357,0.002,4510.6,4510.5,26.5028892]
[1758044001959,0.4382,4512.6,4510.8,3.00890165]
[1758044002199,0.4382,4512.6,4510.8,11.49507066]
[1758044002409,0.4382,4512.6,4510.8,13.26200025]
[1758044002560,0.4382,4512.6,4510.8,28.69990025]
[1758044002991,0.4382,4512.6,4511.8,3.0084103]
[1758044003294,0.24,4512.8,4511.8,8.4945744]
[1758044003594,0.24,4512.8,4511.8,24.1987103]
[1758044003769,0.24,4512.8,4511.8,24.91597051]
[1758044003965,0.24,4512.8,4511.8,27.91597051]
[1758044004175,0.24,4512.8,4511.8,23.66297051]
[1758044004499,0.4382,4512.7,4511.8,27.91597051]
[1758044004664,0.24,4512.8,4511.8,27.91597051]
[1758044005267,0.24,4512.8,4511.8,34.91597051]
[1758044006180,0.6782,4512.8,4511.8,31.15597051]
[1758044006499,0.6782,4512.8,4511.8,35.02637051]
[1758044007814,0.4382,4512.6,4511.8,35.02637051]
[1758044008296,0.4382,4512.6,4511.8,30.32847051]
[1758044008612,0.4382,4512.6,4511.8,34.08747051]
[1758044008967,0.4382,4512.6,4511.8,35.01497051]
[1758044009164,0.4382,4512.6,4511.8,34.08747051]
[1758044009905,0.4382,4512.6,4511.8,35.01497051]
[1758044012775,0.24,4512.8,4512.7,3.00796826]
[1758044013017,0.24,4512.8,4512.7,8.77076509]
[1758044013182,0.24,4512.8,4512.7,9.07306509]
[1758044013382,0.24,4512.8,4512.7,10.00056509]
[1758044014574,0.24,4512.8,4512.7,9.07306509]
[1758044014806,0.24,4512.8,4512.7,16.54676509]
[1758044015010,0.24,4512.8,4512.7,20.00056509]
[1758044015174,0.24,4512.8,4512.7,19.07306509]
[1758044015603,0.24,4512.8,4512.7,19.54676509]
[1758044015902,0.24,4512.8,4512.7,20.00056509]
[1758044017076,0.24,4512.8,4512.7,17.33079683]
[1758044017438,0.6782,4512.8,4512.7,8.703]
[1758044017885,0.6782,4512.8,4512.7,12.461]
[1758044018488,0.6782,4512.8,4512.7,13.253]
[1758044021682,0.6782,4512.8,4512.7,6.253]
[1758044022413,0.24,4512.8,4512.7,6.253]
[1758044022808,0.24,4512.8,4512.7,6.3634]
[1758044023011,0.6782,4512.8,4512.7,6.3634]
[1758044023177,0.24,4512.8,4512.7,6.3634]
[1758044025705,0.242,4512.8,4512.7,9.80916826]
[1758044026529,0.242,4512.8,4512.7,9.78188909]
[1758044026714,0.242,4512.8,4512.7,25.03798909]
[1758044026915,0.242,4512.8,4512.7,25.51168909]
[1758044027792,0.242,4512.8,4512.7,30.51270092]
[1758044028645,0.242,4512.8,4512.7,33.51270092]
[1758044029100,0.242,4512.8,4512.7,28.52490092]
[1758044029311,0.242,4512.8,4512.7,32.28290092]
[1758044030400,0.6802,4512.8,4512.7,21.30792083]
[1758044030600,0.6802,4512.8,4512.7,23.8634]
[1758044031312,0.242,4512.8,4512.7,23.8634]
[1758044031911,0.6802,4512.8,4512.7,20.8634]
[1758044032610,0.6802,4512.8,4512.7,16.3134]
[1758044032942,0.6802,4512.8,4512.7,1.8134]
[1758044033112,0.6802,4512.8,4512.7,5.5704]
[1758044033433,0.6802,4512.8,4512.7,6.3624]
[1758044033635,0.88756481,4512.8,4512.7,2.6054]
[1758044033822,3.10348397,4512.8,4512.7,6.3624]
[1758044034224,0.88756481,4512.8,4512.7,6.3624]
[1758044034536,2.89611916,4512.8,4512.7,6.3624]
[1758044034746,3.65715744,4512.8,4512.7,0.1104]
[1758044034924,3.65715744,4512.8,4511.8,0.001]
[1758044034925,2.21601737,4512.6,4512.5,1.703]
[1758044035243,3.06906111,4512.6,4512.5,5.46]
[1758044035429,3.06906111,4512.6,4512.5,6.252]
[1758044035838,3.68916648,4512.6,4512.5,6.252]
[1758044038740,3.68899895,4512.6,4512.5,5.46]
[1758044038946,3.79939895,4512.6,4512.5,1.703]
[1758044039144,3.79939895,4512.6,4512.5,5.46]
[1758044040157,1.58338158,4512.6,4512.5,5.46]
[1758044040354,3.79939895,4512.6,4512.5,5.46]
[1758044041016,3.79939895,4512.6,4512.5,1.703]
[1758044041218,3.79939895,4512.6,4512.5,5.46]
[1758044042049,3.79925576,4512.6,4512.5,5.46]
[1758044043132,3.68885576,4512.6,4512.5,5.46]
[1758044044143,3.25065576,4512.6,4512.5,5.46]
[1758044044349,6.36105576,4512.6,4512.5,5.46]
[1758044045141,5.6304391,4512.6,4512.5,2.495]
[1758044045363,5.42338218,4512.6,4512.5,6.252]
[1758044045863,5.86158218,4512.6,4512.5,5.46]
[1758044046021,6.06863678,4512.6,4512.5,5.46]
[1758044046228,6.98104098,4512.6,4512.5,5.46]
[1758044046535,7.45811788,4512.6,4512.5,5.46]
[1758044047536,7.45811788,4512.6,4512.5,1.703]
[1758044047754,7.45811788,4512.6,4512.5,5.01]
[1758044048053,7.45811788,4512.6,4512.5,5.46]
[1758044049236,13.4641418,4512.6,4512.5,1.703]
[1758044049435,2.21631205,4512.0,4511.9,1.703]
[1758044049654,6.15236267,4512.0,4511.9,5.46]
[1758044050164,6.5905789,4512.0,4511.9,5.46]
[1758044050336,5.32676117,4511.9,4511.8,0.001]
[1758044050537,6.21827371,4511.9,4511.8,0.001]
[1758044050742,6.65647371,4511.9,4511.8,1.6]
[1758044050959,8.70786619,4511.9,4511.8,0.001]
[1758044051666,11.2225816,4511.5,4511.4,0.001]
[1758044051860,11.2225816,4511.5,4510.9,3.758]
[1758044051861,2.21680336,4511.0,4510.9,3.758]
[1758044052046,6.45812448,4511.0,4510.9,3.758]
[1758044052249,6.25105365,4511.0,4510.9,0.001]
[1758044052450,7.60117896,4511.0,4510.9,0.001]
[1758044053038,7.7084906,4511.0,4510.9,0.001]
[1758044053467,11.4654906,4511.0,4510.9,0.001]
[1758044053984,11.25812579,4511.0,4510.9,0.001]
[1758044054187,7.16143791,4511.0,4510.9,0.001]
[1758044054396,11.35663791,4511.0,4510.9,0.001]
[1758044054603,7.16143791,4511.0,4510.9,0.001]
[1758044055765,6.08968316,4511.0,4510.9,0.767]
[1758044055972,0.47535268,4511.6,4510.9,1.2596]
[1758044056174,2.21680336,4511.0,4510.9,1.2596]
[1758044056483,2.21675186,4511.2,4510.9,1.2596]
[1758044056664,2.21668183,4511.3,4511.0,0.9449]
[1758044056861,2.21668183,4511.3,4511.2,0.3137]
[1758044057170,2.21668183,4511.3,4511.2,5.0166]
[1758044057171,2.21665595,4511.3,4511.2,5.0166]
[1758044057687,2.21665595,4511.3,4511.2,0.3137]
[1758044057892,2.21680336,4511.0,4510.9,0.001]
[1758044058195,2.21680336,4511.0,4510.9,3.759]
[1758044058489,2.21680336,4511.0,4510.9,4.525]
[1758044058659,2.21680336,4511.0,4510.9,5.0176]
[1758044058969,2.21680336,4511.0,4510.9,4.525]
[1758044059361,2.21680336,4511.0,4510.9,4.0727]
[1758044059556,2.21680336,4511.0,4510.9,3.759]
[1758044059557,5.7394142,4511.0,4510.9,3.759]
[1758044059956,5.7394142,4511.0,4510.9,4.0727]
[1758044060261,5.7394142,4511.0,4510.9,5.0176]
[1758044061657,5.7394142,4511.0,4510.9,4.525]
[1758044061863,5.7394142,4511.0,4510.9,4.0727]
[1758044062280,5.21680336,4511.0,4510.9,5.0176]
[1758044062591,3.0,4511.0,4510.9,5.0176]
[1758044062994,5.21680336,4511.0,4510.9,5.0176]
[1758044063308,5.21680336,4511.0,4510.9,0.3147]
[1758044063495,5.21680336,4511.0,4510.9,4.0727]
[1758044064001,5.21680336,4511.0,4510.9,5.0176]
[1758044064302,5.42347978,4511.0,4510.9,5.0176]
[1758044064714,3.20667642,4511.0,4510.9,5.0176]
[1758044065081,5.21680336,4511.0,4510.9,5.0176]
[1758044065268,5.42355785,4511.0,4510.9,5.0176]
[1758044065596,5.42356444,4511.0,4510.9,4.0727]
[1758044065791,5.42356444,4511.0,4510.9,0.3147]
[1758044065992,5.42356444,4511.0,4510.9,4.0727]
[1758044066362,6.19883167,4511.0,4510.9,3.759]
[1758044066763,6.63703167,4511.0,4510.9,0.001]
[1758044066992,7.11350444,4511.0,4510.9,3.759]
[1758044067201,7.32032205,4511.0,4510.9,3.759]
[1758044067699,7.32032205,4511.0,4510.9,0.001]
[1758044068095,11.07732205,4511.0,4510.9,0.001]
[1758044069024,6.8822095,4511.0,4510.9,0.001]
[1758044069224,10.6392095,4511.0,4510.9,0.001]
[1758044069404,11.0774095,4511.0,4510.9,0.001]
[1758044069719,7.3204095,4511.0,4510.9,0.001]
[1758044070106,7.32058666,4511.0,4510.9,0.001]
[1758044070482,11.07858666,4511.0,4510.9,0.001]
[1758044072099,10.87166501,4511.0,4510.9,0.001]
[1758044072285,11.07856929,4511.0,4510.9,0.001]
[1758044072487,11.07756929,4511.0,4510.9,0.001]
[1758044075414,12.27069245,4511.0,4510.9,0.001]
[1758044076216,8.07549245,4511.0,4510.9,0.001]
[1758044076422,11.83349245,4511.0,4510.9,0.001]
[1758044076627,8.07549245,4511.0,4510.9,0.001]
[1758044076835,10.72920814,4511.0,4510.9,0.001]
[1758044077334,11.9223313,4511.0,4510.9,0.001]
[1758044077519,2.21719657,4510.2,4510.1,0.011]
[1758044077717,2.6310225,4510.2,4510.1,0.011]
[1758044077942,5.6310225,4510.2,4510.1,0.011]
[1758044078094,6.29739078,4510.2,4510.1,0.011]
[1758044078288,6.77386355,4510.2,4510.1,0.011]
[1758044078489,7.01576596,4510.2,4510.1,0.011]
[1758044078726,7.49223873,4510.2,4510.1,0.011]
[1758044080402,7.49223873,4510.2,4509.5,0.4541]
[1758044080615,11.23163483,4509.8,4509.5,0.001]
[1758044080930,15.87993353,4509.8,4509.5,0.001]
[1758044081093,18.03359266,4509.8,4509.5,0.001]
[1758044081523,16.83976474,4509.8,4509.5,0.001]
[1758044081793,18.03359266,4509.8,4509.5,0.001]
[1758044082127,17.59539266,4509.8,4509.5,0.001]
[1758044082312,18.03359266,4509.8,4509.5,0.001]
[1758044082518,16.83976474,4509.8,4509.5,0.001]
[1758044083240,18.03359266,4509.8,4509.6,0.001]
[1758044083942,17.59539266,4509.8,4509.6,0.001]
[1758044084104,16.40156474,4509.8,4509.6,0.001]
[1758044086242,10.18041886,4509.8,4509.7,1.2089]
[1758044086443,10.38744878,4509.8,4509.7,1.2089]
[1758044086595,6.62944878,4509.8,4509.7,1.2089]
[1758044086927,9.91097601,4509.8,4509.7,1.2089]
[1758044087094,10.38744878,4509.8,4509.7,0.7558]
[1758044087295,10.38744878,4509.8,4509.7,0.7532]
[1758044087533,6.62944878,4509.8,4509.7,0.7532]
[1758044087734,10.38744878,4509.8,4509.7,0.3001]
[1758044088056,10.38744878,4509.8,4509.7,0.001]
[1758044088229,6.62944878,4509.8,4509.7,0.001]
[1758044088428,10.82564878,4509.8,4509.7,0.001]
[1758044088617,10.91451545,4509.8,4509.7,0.001]
[1758044090124,2.21749157,4509.6,4509.5,1e-08]
[1758044090307,10.64118314,4509.6,4509.5,1e-08]
[1758044090506,11.51728924,4509.6,4509.5,1e-08]
[1758044090834,12.71111716,4509.6,4509.5,1e-08]
[1758044091149,11.51728924,4509.6,4509.5,1e-08]
[1758044091846,12.71111716,4509.6,4509.5,1e-08]
[1758044092932,12.71119274,4509.6,4509.5,1e-08]
[1758044093818,12.80006574,4509.6,4509.5,1e-08]
[1758044094165,12.80003853,4509.6,4509.5,1e-08]
[1758044095430,11.60621061,4509.6,4509.5,1e-08]
[1758044095631,12.79878556,4509.6,4509.5,1e-08]
[1758044095867,2.21768828,4509.2,4509.1,1e-08]
[1758044096044,2.21768828,4509.2,4508.4,1e-08]
[1758044096045,2.2180326,4508.5,4508.4,1e-08]
[1758044096351,14.4052164,4508.5,4508.4,1e-08]
[1758044096650,16.09076435,4508.5,4508.4,0.31070001]
[1758044097631,16.09076435,4508.5,4508.4,1.23420001]
[1758044097842,6.59920531,4508.5,4508.4,1.23420001]
[1758044098214,6.12273254,4508.5,4508.4,1.23420001]
[1758044098736,9.88073254,4508.5,4508.4,0.31070001]
[1758044098937,15.37238917,4508.5,4508.4,0.74350001]
[1758044099136,16.61239556,4508.5,4508.4,0.31070001]
[1758044099346,16.61239556,4508.5,4508.4,1e-08]
[1758044099928,16.61239556,4508.5,4508.4,0.31070001]
[1758044100329,6.59920531,4508.5,4508.4,1.23420001]
[1758044100573,10.15020534,4508.5,4508.4,1.23420001]
[1758044100728,10.35729339,4508.5,4508.4,1.23420001]
[1758044101929,5.90150534,4508.5,4508.4,1.23420001]
[1758044102273,5.42503257,4508.5,4508.4,1.23420001]
[1758044102482,5.42503257,4508.5,4508.4,0.74350001]
[1758044102626,3.20699997,4508.5,4508.4,1.23420001]
[1758044102939,0.66654891,4508.9,4508.5,0.792]
[1758044103140,2.21779234,4509.0,4508.6,0.02217983]
[1758044103342,2.21774947,4509.1,4508.9,0.3107]
[1758044103566,2.21774947,4509.1,4509.0,0.9235]
[1758044103865,0.47722109,4509.5,4509.0,1.2342]
[1758044104066,0.20711712,4509.7,4509.1,0.9235]
[1758044104252,0.20711712,4509.7,4509.6,0.3107]
[1758044104253,2.2174424,4509.7,4509.6,0.3107]
[1758044104456,2.90178061,4509.7,4509.6,0.8014]
[1758044104651,4.2910179,4509.7,4509.6,0.3107]
[1758044104842,2.2176391,4509.3,4509.2,0.4907]
[1758044105045,2.2176391,4509.3,4508.5,1.705]
[1758044105046,3.0,4509.2,4508.5,1.705]
[1758044105242,2.2180326,4508.5,4508.4,0.49070001]
[1758044105579,5.42528503,4508.5,4508.4,1e-08]
[1758044105879,5.90250612,4508.5,4508.4,1e-08]
[1758044106444,6.39320613,4508.5,4508.4,1e-08]
[1758044106643,6.39326018,4508.5,4508.4,0.74350001]
[1758044106883,6.39326018,4508.5,4508.4,1.23420001]
[1758044107378,6.50366018,4508.5,4508.4,0.80140001]
[1758044107558,6.40790129,4508.5,4508.4,0.31070001]
[1758044107880,6.88512238,4508.5,4508.4,0.31070001]
[1758044108382,6.88512238,4508.5,4508.4,1.23420001]
[1758044108735,6.01296017,4508.5,4508.4,1.23420001]
[1758044109766,6.01376538,4508.5,4508.4,1.23420001]
[1758044111175,6.01376538,4508.5,4508.4,0.80140001]
[1758044111777,6.01376538,4508.5,4508.4,0.31070001]
[1758044112297,6.01376538,4508.5,4508.4,1e-08]
[1758044112498,7.27939774,4508.5,4508.4,1e-08]
[1758044112912,7.51969774,4508.5,4508.4,1e-08]
[1758044114515,8.05038653,4508.5,4508.4,1e-08]
[1758044114813,8.48858653,4508.5,4508.4,1e-08]
[1758044115098,8.25436928,4508.5,4508.4,1e-08]
[1758044115409,8.69616928,4508.5,4508.4,1e-08]
[1758044115765,9.88895386,4508.5,4508.4,1e-08]
[1758044116110,9.00895386,4508.5,4508.4,1e-08]
[1758044116312,7.57586928,4508.5,4508.4,0.31070001]
[1758044116517,11.33386928,4508.5,4508.4,1.23420001]